fUSD/lending_fUSD_20260428
["ID","MTS","AMOUNT","RATE_DAILY","PERIOD"]
[421291785,1777366242645,-150.0,0.00011538,2]
[421291786,1777366242654,-246.54989292,0.00011557,2]
[421291787,1777366242666,-300.0,0.00011557,2]
[421291788,1777366242755,-44.87135557,0.00011557,2]
[421291789,1777366242799,-1759.57875151,0.00011557,2]
[421291790,1777366242809,-300.0,0.00011557,2]
[421291791,1777366242818,-150.0,0.00011585,2]
[421291792,1777366242827,-150.0,0.000116,2]
[421291793,1777366242836,-150.0,0.00011631,2]
[421291794,1777366242846,-150.0,0.0001164,2]
[421291795,1777366242855,-150.0,0.00011677,2]
[421291796,1777366242864,-433.0,0.00011677,2]
[421291797,1777366242873,-150.0,0.000117,2]
[421291798,1777366242883,-150.0,0.00011723,2]
[421291799,1777366242892,-150.0,0.0001176,2]
[421291800,1777366242901,-150.0,0.00011769,2]
[421291801,1777366242911,-613.78329921,0.00011804,2]
[421291802,1777366242920,-152.0,0.00011809,7]
[421291803,1777366242929,-150.0,0.00011815,2]
[421291804,1777366242939,-150.0,0.00011862,2]
[421291805,1777366242948,-150.0,0.0001188,2]
[421291806,1777366242957,-177.47176,0.0001188,2]
[421291807,1777366242967,-200.0,0.00011904,2]
[421291808,1777366242976,-150.0,0.00011908,2]
[421291809,1777366242985,-150.0,0.00011954,2]
[421291810,1777366242994,-500.0,0.00011973,2]
[421291811,1777366243003,-500.0,0.00011973,2]
[421291812,1777366243012,-500.80511132,0.00011973,2]
[421291813,1777366243022,-376.2033144,0.00011992,2]
[421291814,1777366243031,-1450.3591331,0.00011992,2]
[421291815,1777366243040,-369946.7986308,0.00012,2]
[421291816,1777366243055,-647.68725534,0.00012,2]
[421291827,1777366245755,-5734.12045807,0.00012,2]
[421291828,1777366245767,-50766.3098969,0.00012,2]
[421291829,1777366245840,-2656.61977035,0.00012,2]
[421291830,1777366245867,-4046.9109,0.00012,2]
[421291831,1777366245879,-1623.30494545,0.00012,2]
[421291832,1777366245891,-904.71037814,0.00012,2]
[421291833,1777366245976,-6699.99999997,0.00012,2]
[421291834,1777366246347,-3892.5,0.00012,2]
[421291881,1777367347163,-257.0,8.219e-05,2]
[421291882,1777367347187,-233.0,8.219e-05,2]
[421291889,1777367431654,-47.0,8.219e-05,2]
[421291890,1777367431665,-235.203794,9.451e-05,2]
[421291891,1777367431724,-264.796206,9.451e-05,2]
[421291892,1777367431733,-1200.0,9.541e-05,2]
[421291893,1777367431742,-300.0,9.541e-05,2]
[421291894,1777367431751,-262.0,9.541e-05,2]
[421291895,1777367431761,-150.0,9.551e-05,2]
[421291896,1777367431771,-197.48,9.951e-05,2]
[421291897,1777367431780,-455.0,0.00010149,2]
[421291898,1777367431790,-1381.0,0.0001017,2]
[421291899,1777367431800,-596.98430607,0.00010289,2]
[421291900,1777367431810,-1680.0,0.00010495,2]
[421291901,1777367431820,-255.0,0.00010506,2]
[421291902,1777367431830,-500.0,0.00010673,2]
[421291903,1777367431840,-500.0,0.00010673,2]
[421291904,1777367431850,-500.0,0.00010673,2]
[421291905,1777367431860,-610.94503595,0.00010673,2]
[421291906,1777367431870,-500.0,0.00010673,2]
[421291907,1777367431879,-500.49808939,0.00010673,2]
[421291908,1777367431888,-500.0,0.00010673,2]
[421291909,1777367431898,-247.08896607,0.00010673,2]
[421291910,1777367431908,-6035.0,0.00010676,2]
[421291911,1777367431917,-927.0,0.00010676,2]
[421291912,1777367431927,-181807.90846981,0.000107,2]
[421291913,1777367431936,-500.0,0.00010729,2]
[421291914,1777367431950,-352.91611983,0.0001076,4]
[421291915,1777367431960,-500.0,0.00010795,2]
[421291916,1777367431970,-153.65430764,0.000108,2]
[421291917,1777367431980,-150.0,0.000108,2]
[421291918,1777367431990,-150.0,0.000108,2]
[421291919,1777367431999,-150.0,0.000108,2]
[421291920,1777367432010,-150.0,0.000108,2]
[421291921,1777367432020,-150.0,0.000108,2]
[421291922,1777367432029,-500.0,0.00011051,2]
[421291923,1777367432039,-1000.0,0.00011221,2]
[421291924,1777367432048,-1000.0,0.00011221,2]
[421291925,1777367432058,-1000.0,0.00011221,2]
[421291926,1777367432067,-1000.0,0.00011221,2]
[421291927,1777367432077,-1000.0,0.00011221,2]
[421291928,1777367432330,-1527.712,0.00011308,2]
[421291929,1777367432362,-500.0,0.00011382,2]
[421291930,1777367432372,-211.76,0.00011507,2]
[421291931,1777367432382,-1000.0,0.00011511,2]
[421291932,1777367432392,-2351.0,0.00011545,2]
[421291933,1777367432401,-433.0,0.00011557,2]
[421291934,1777367432412,-500.0,0.00011724,2]
[421291935,1777367432421,-379.0,0.00011755,2]
[421291936,1777367432431,-1512.08005573,0.00011768,2]
[421291937,1777367432441,-1500.0,0.00011768,2]
[421291938,1777367432451,-1500.0,0.00011768,2]
[421291939,1777367432461,-719.28320637,0.00011768,2]
[421291940,1777367432471,-1500.0,0.00011768,2]
[421291941,1777367432480,-5000.0,0.000119,2]
[421291942,1777367432491,-200.0,0.00011904,2]
[421291943,1777367432500,-3132.62,0.00011973,2]
[421291944,1777367432511,-500.0,0.00011973,2]
[421291945,1777367432519,-500.36342385,0.00011973,2]
[421291946,1777367432528,-379.0,0.00011975,2]
[421291947,1777367432538,-425.84564342,0.00011988,2]
[421291948,1777367432547,-829.4524781,0.00011992,2]
[421291949,1777367432557,-500.0,0.00011999,2]
[421291950,1777367432566,-526.86498235,0.00011999,2]
[421291951,1777367432576,-563.0,0.00012,5]
[421291952,1777367432585,-453.0,0.00012,5]
[421291953,1777367432595,-250.0,0.00012,2]
[421291954,1777367432604,-554969.82793216,0.00012,2]
[421291955,1777367432942,-6748.0,0.00012,2]
[421291956,1777367433183,-574.43304023,0.00011999,2]
[421291957,1777367433193,-346.4415228,0.00012,2]
[421291962,1777367437940,-162.61,8.219e-05,2]
[421291963,1777367437951,-2471.96533954,0.0001069,2]
[421291964,1777367437964,-860.55186502,0.0001069,2]
[421291965,1777367437991,-3404.56,0.0001069,2]
[421291966,1777367438004,-27464.63588278,0.0001069,2]
[421291967,1777367438015,-500.0,0.00011999,2]
[421291968,1777367438025,-515.61924685,0.00011999,2]
[421291969,1777367438035,-350.50684103,0.00011999,2]
[421291970,1777367438046,-271912.06526119,0.00012,2]
[421291974,1777367440301,-891.24274502,0.00012,2]
[421291975,1777367440315,-2365.275,0.00012,2]
[421291976,1777367440329,-2511.0,0.00012,2]
[421291977,1777367440343,-1844.09,0.00012,2]
[421291978,1777367440356,-4241.12863108,0.00012,2]
[421291979,1777367440375,-315.1908,0.00012,2]
[421291980,1777367440416,-644.52000004,0.00012,2]
[421291981,1777367440526,-2857.40941191,0.00012,2]
[421292000,1777367443290,-1000.0,0.00012,2]
[421292002,1777367443311,-1388591.40813881,0.00012,2]
[421292005,1777367443335,-2667.23149115,0.00012,2]
[421292006,1777367443349,-740.57871074,0.00012,2]
[421292017,1777367445874,-517.71492331,0.00012,2]
[421292018,1777367445888,-14803.37094008,0.00012,2]
[421292019,1777367446293,-114850.96915825,0.00012,2]
[421292021,1777367723341,5060.03,0.000155,30]
[421292022,1777367744444,5060.0,0.0001,10]
[421292083,1777368560131,-244.0,8.219e-05,2]
[421292084,1777368560153,-246.0,8.219e-05,2]
[421292089,1777368631951,-280.0,8.219e-05,2]
[421292090,1777368631961,-964.95933517,9.031e-05,2]
[421292091,1777368631970,-250.0,9.041e-05,2]
[421292092,1777368631979,-250.0,9.041e-05,2]
[421292093,1777368631988,-224.57524947,9.041e-05,2]
[421292094,1777368631998,-224.57524946,0.00010321,2]
[421292095,1777368632007,-150.0,0.00010701,2]
[421292096,1777368632016,-150.0,0.00010701,2]
[421292097,1777368632025,-150.0,0.00010701,2]
[421292098,1777368632034,-150.0,0.00010701,2]
[421292099,1777368632043,-150.0,0.00010701,2]
[421292100,1777368632052,-500.0,0.00010795,2]
[421292101,1777368632061,-1200.0,0.00010884,2]
[421292102,1777368632070,-371.0,0.00010885,2]
[421292103,1777368632078,-150.0,0.00010999,2]
[421292104,1777368632087,-1350.0,0.00011054,2]
[421292105,1777368632097,-1266.0,0.00011054,2]
[421292106,1777368632106,-6035.0,0.00011054,2]
[421292107,1777368632115,-150.0,0.00011098,2]
[421292108,1777368632124,-500.0,0.00011124,2]
[421292109,1777368632133,-252.13,0.00011192,2]
[421292110,1777368632143,-150.0,0.00011296,2]
[421292111,1777368632152,-500.0,0.00011458,2]
[421292112,1777368632161,-150.0,0.00011494,2]
[421292113,1777368632171,-150.0,0.00011593,2]
[421292114,1777368632180,-224.57524946,0.000117,2]
[421292115,1777368632189,-150.0,0.00011726,2]
[421292116,1777368632198,-200.0,0.00011726,2]
[421292117,1777368632208,-150.0,0.00011726,2]
[421292118,1777368632217,-6786.3412,0.00011756,2]
[421292119,1777368632227,-150.0,0.00011799,2]
[421292120,1777368632236,-1222.17,0.000118,2]
[421292121,1777368632246,-98845.6329,0.000118,2]
[421292122,1777368632255,-5000.0,0.000118,2]
[421292123,1777368632264,-500.0,0.00011801,2]
[421292124,1777368632274,-13762.55451483,0.00011867,2]
[421292126,1777368632284,-13762.55451483,0.00011878,2]
[421292127,1777368632293,-13762.55451483,0.00011889,2]
[421292128,1777368632302,-150.0,0.0001189,2]
[421292129,1777368632311,-150.0,0.0001189,2]
[421292130,1777368632320,-150.0,0.0001189,2]
[421292131,1777368632330,-150.0,0.0001189,2]
[421292132,1777368632339,-500.0,0.0001189,2]
[421292133,1777368632348,-200.0,0.00011893,2]
[421292134,1777368632358,-500.0,0.00011893,2]
[421292135,1777368632367,-250.0,0.00011899,2]
[421292136,1777368632376,-500.0,0.00011899,2]
[421292137,1777368632385,-368.80548764,0.00011899,2]
[421292138,1777368632394,-252.10312816,0.00011899,2]
[421292139,1777368632403,-180.28776175,0.00011899,2]
[421292140,1777368632413,-500.0,0.00011899,2]
[421292141,1777368632422,-210.93347279,0.00011899,2]
[421292142,1777368632431,-43581.42662178,0.000119,2]
[421292143,1777368638064,-23858.52003647,0.000119,2]
[421292144,1777368638329,-4784.985299,0.000119,2]
[421292150,1777368641446,-7818.42843277,0.000119,2]
[421292163,1777368642975,-536.16821049,0.000119,2]
[421292166,1777368646712,-1604.493,0.000119,2]
[421292167,1777368646724,-5042.72717229,0.000119,2]
[421292207,1777369616426,-240.30032005,8.219e-05,2]
[421292209,1777369833199,-280.0,8.219e-05,2]
[421292210,1777369833209,-300.0,9.041e-05,2]
[421292211,1777369833219,-150.0,0.00010529,2]
[421292212,1777369833228,-150.0,0.00010529,2]
[421292213,1777369833237,-150.0,0.00010529,2]
[421292214,1777369833247,-500.0,0.00010958,2]
[421292215,1777369833257,-547.23248572,0.00010958,2]
[421292216,1777369833267,-150.0,0.00011114,2]
[421292217,1777369833276,-209.0,0.00011223,2]
[421292218,1777369833286,-805.107481,0.00011223,2]
[421292219,1777369833298,-394.892519,0.00011223,2]
[421292220,1777369833308,-300.0,0.00011223,2]
[421292221,1777369833317,-1200.0,0.00011223,2]
[421292222,1777369833327,-300.0,0.00011223,2]
[421292223,1777369833337,-6035.0,0.00011225,2]
[421292224,1777369833346,-201.7,0.0001137,2]
[421292225,1777369833359,-1872.108,0.00011534,2]
[421292226,1777369833369,-289.861,0.00011534,2]
[421292227,1777369833379,-151.0,0.00011593,2]
[421292228,1777369833388,-150.0,0.00011599,2]
[421292229,1777369833398,-500.0,0.000116,2]
[421292230,1777369833407,-998.17138467,0.000116,2]
[421292231,1777369833418,-2276.0026747,0.000116,2]
[421292232,1777369833428,-2462.55293071,0.000116,2]
[421292233,1777369833437,-2752.24846389,0.000116,2]
[421292234,1777369833447,-150.67929966,0.000116,2]
[421292235,1777369833456,-151.81023887,0.000116,2]
[421292236,1777369833466,-5000.0,0.000116,2]
[421292237,1777369833475,-150.0,0.00011626,2]
[421292238,1777369833485,-150.0,0.00011626,2]
[421292239,1777369833494,-150.0,0.00011626,2]
[421292240,1777369833503,-150.0,0.00011626,2]
[421292241,1777369833513,-150.0,0.00011626,2]
[421292242,1777369833523,-250.0,0.00011626,2]
[421292244,1777369833532,-150.0,0.00011626,2]
[421292246,1777369833541,-150.0,0.00011626,2]
[421292248,1777369833551,-200.0,0.00011626,2]
[421292250,1777369833562,-150.0,0.00011626,2]
[421292251,1777369833571,-150.0,0.00011626,2]
[421292252,1777369833585,-261.0066596,0.00011626,2]
[421292253,1777369833596,-163.23110827,0.00011626,2]
[421292254,1777369833606,-200.0,0.00011693,2]
[421292255,1777369833616,-150.0,0.00011699,2]
[421292256,1777369833625,-150.0,0.00011699,2]
[421292257,1777369833635,-150.0,0.00011699,2]
[421292258,1777369833644,-425.16184594,0.00011699,2]
[421292259,1777369833654,-500.0,0.00011699,2]
[421292261,1777369833663,-607.14547965,0.00011699,2]
[421292263,1777369833673,-500.0,0.00011699,2]
[421292264,1777369833683,-500.0,0.00011699,2]
[421292265,1777369833693,-500.0,0.00011699,2]
[421292267,1777369833703,-500.0,0.00011699,2]
[421292269,1777369833712,-500.0,0.00011699,2]
[421292271,1777369833722,-500.0,0.00011699,2]
[421292272,1777369833731,-500.0,0.00011699,2]
[421292273,1777369833740,-500.0,0.00011699,2]
[421292274,1777369833750,-500.0,0.00011699,2]
[421292275,1777369833759,-500.0,0.00011699,2]
[421292276,1777369833769,-500.0,0.00011699,2]
[421292277,1777369833778,-500.0,0.00011699,2]
[421292278,1777369833788,-500.0,0.00011699,2]
[421292279,1777369833798,-500.0,0.00011699,2]
[421292280,1777369833807,-500.0,0.00011699,2]
[421292281,1777369833817,-500.0,0.00011699,2]
[421292282,1777369833827,-500.0,0.00011699,2]
[421292283,1777369833836,-500.0,0.00011699,2]
[421292284,1777369833846,-500.0,0.00011699,2]
[421292285,1777369833856,-500.0,0.00011699,2]
[421292286,1777369833865,-500.0,0.00011699,2]
[421292287,1777369833875,-500.0,0.00011699,2]
[421292288,1777369833884,-500.0,0.00011699,2]
[421292289,1777369833894,-500.0,0.00011699,2]
[421292290,1777369833904,-500.0,0.00011699,2]
[421292291,1777369833914,-469.73858615,0.00011699,2]
[421292292,1777369833924,-500.0,0.00011699,2]
[421292293,1777369833934,-500.0,0.00011699,2]
[421292294,1777369833944,-500.0,0.00011699,2]
[421292295,1777369833954,-500.0,0.00011699,2]
[421292296,1777369833964,-500.0,0.00011699,2]
[421292297,1777369833974,-500.0,0.00011699,2]
[421292298,1777369833987,-500.0,0.00011699,2]
[421292299,1777369833997,-198.82123559,0.00011699,2]
[421292300,1777369834007,-500.0,0.00011699,2]
[421292301,1777369834017,-500.0,0.00011699,2]
[421292302,1777369834027,-500.0,0.00011699,2]
[421292303,1777369834036,-350.0,0.00011699,2]
[421292304,1777369834046,-500.0,0.00011699,2]
[421292305,1777369834055,-500.0,0.00011699,2]
[421292306,1777369834065,-500.0,0.00011699,2]
[421292307,1777369834075,-500.0,0.00011699,2]
[421292308,1777369834084,-500.0,0.00011699,2]
[421292309,1777369834094,-500.0,0.00011699,2]
[421292310,1777369834104,-500.0,0.00011699,2]
[421292311,1777369834114,-500.0,0.00011699,2]
[421292312,1777369834124,-258.16384135,0.00011699,2]
[421292313,1777369834133,-251.7726285,0.00011699,2]
[421292314,1777369834146,-248.2273715,0.00011699,2]
[421292315,1777369834155,-350.0,0.00011699,2]
[421292316,1777369834165,-500.0,0.00011699,2]
[421292317,1777369834175,-497.65343096,0.00011699,2]
[421292318,1777369834184,-500.0,0.00011699,2]
[421292319,1777369834193,-500.0,0.00011699,2]
[421292320,1777369834203,-500.0,0.00011699,2]
[421292321,1777369834213,-500.0,0.00011699,2]
[421292322,1777369834222,-500.0,0.00011699,2]
[421292323,1777369834234,-500.0,0.00011699,2]
[421292324,1777369834244,-500.0,0.00011699,2]
[421292325,1777369834254,-500.0,0.00011699,2]
[421292326,1777369834264,-500.0,0.00011699,2]
[421292327,1777369834274,-193.75168905,0.00011699,2]
[421292328,1777369834284,-250.0,0.00011699,2]
[421292329,1777369834294,-241419.83119047,0.000117,2]
[421292330,1777369834306,-120659.60060953,0.000117,2]
[421292331,1777369834316,-183867.30361204,0.000117,2]
[421292332,1777369834327,-1254.41808677,0.000117,2]
[421292333,1777369834339,-449.80508817,0.000117,2]
[421292334,1777369834350,-917.13268707,0.000117,2]
[421292335,1777369834362,-538.18293477,0.000117,2]
[421292336,1777369834374,-1460.32375375,0.000117,2]
[421292337,1777369834385,-1603.51757386,0.000117,2]
[421292338,1777369834397,-377.599432,0.000117,2]
[421292339,1777369834408,-10499.94181513,0.000117,2]
[421292340,1777369834422,-391.34847306,0.000117,2]
[421292342,1777369838189,-248.27924226,0.0001176,2]
[421292343,1777369838199,-233.98723583,0.000118,2]
[421292344,1777369838209,-672.78516366,0.00011809,2]
[421292345,1777369838243,-1581.53374749,0.00011809,2]
[421292346,1777369838256,-379.33335,0.00011809,2]
[421292347,1777369838456,-7215.34296638,0.00011809,2]
[421292348,1777369838468,-3015.00009,0.00011809,2]
[421292349,1777369838479,-490.0,0.00011809,2]
[421292350,1777369838490,-979.47501245,0.00011809,2]
[421292351,1777369838616,-12587.39000855,0.00011809,2]
[421292405,1777369840569,-165.51949484,0.0001176,2]
[421292406,1777369840578,-613.52805631,0.00011809,2]
[421292407,1777369840589,-827.231402,0.00011809,2]
[421292408,1777369840600,-265.16908496,0.00011809,2]
[421292409,1777369840938,-689.72524371,0.00011809,2]
[421292410,1777369840949,-254.35801595,0.00011809,2]
[421292411,1777369840961,-9649.08740724,0.00011809,2]
[421292412,1777369840971,-5710.9046182,0.00011809,2]
[421292413,1777369840980,-1197.0,0.00011867,5]
[421292414,1777369840990,-1527.0,0.00011867,5]
[421292415,1777369840999,-156.0,0.000119,3]
[421292416,1777369841009,-383.0,0.000119,3]
[421292417,1777369841019,-631.0,0.000119,5]
[421292418,1777369841028,-200.0,0.00011903,2]
[421292419,1777369841038,-200.0,0.00011904,2]
[421292420,1777369841047,-152.0,0.00011921,7]
[421292421,1777369841057,-500.0,0.00011973,2]
[421292422,1777369841066,-500.0,0.00011973,2]
[421292423,1777369841076,-500.0,0.00011973,2]
[421292424,1777369841085,-500.0,0.00011973,2]
[421292425,1777369841094,-500.0,0.00011973,2]
[421292426,1777369841104,-500.0,0.00011973,2]
[421292427,1777369841113,-2730.3802721,0.0001198,2]
[421292428,1777369841122,-3829.9282729,0.0001198,2]
[421292429,1777369841132,-2892.64851562,0.00012,2]
[421292430,1777369841144,-429.22884342,0.00012,2]
[421292431,1777369841155,-669.878833,0.00012,2]
[421292432,1777369841166,-513.92439638,0.00012,2]
[421292441,1777369843313,-377.65200136,0.00012,2]
[421292442,1777369843576,-694.01945009,0.00011225,2]
[421292448,1777369846421,-249.01654991,0.00011225,2]
[421292449,1777369846431,-8878.27611936,0.00012,2]
[421292450,1777369846475,-38858.51616,0.00012,2]
[421292451,1777369846531,-4067.6438,0.00012,2]
[421292452,1777369846638,-371.87414539,0.00012,2]
[421292453,1777369846650,-733.71024716,0.00012,2]
[421292454,1777369847011,-3885.0,0.00012,2]
[421292467,1777370961119,-242.0,8.219e-05,2]
[421292468,1777370961143,-280.0,8.219e-05,2]
[421292469,1777370961167,-237.6161635,8.271e-05,2]
[421292470,1777370961191,-220.3838365,8.271e-05,2]
[421292471,1777371024040,40624.768,8.3e-05,5]
[421292472,1777371024066,50000.0,8.3e-05,5]
[421292473,1777371024092,23541.37685627,8.3e-05,5]
[421292475,1777371032597,-250.0,8.592e-05,2]
[421292476,1777371032606,-300.0,9.04e-05,2]
[421292477,1777371032615,-300.0,9.04e-05,2]
[421292478,1777371032624,-1200.0,9.04e-05,2]
[421292479,1777371032634,-300.0,9.04e-05,2]
[421292480,1777371032643,-300.0,9.04e-05,2]
[421292481,1777371032652,-3718.32208559,9.041e-05,2]
[421292482,1777371032663,-318.69697139,9.041e-05,2]
[421292483,1777371032703,-962.98094302,9.041e-05,2]
[421292484,1777371032711,-501.87144906,9.041e-05,2]
[421292485,1777371032720,-92.78118778,9.098e-05,2]
[421292486,1777371032759,-157.21881222,9.098e-05,2]
[421292487,1777371032768,-101.65280065,9.944e-05,2]
[421292488,1777371032779,-78.38519935,9.944e-05,2]
[421292489,1777371032788,-1487.24960209,9.944e-05,2]
[421292490,1777371032799,-899.55239791,9.944e-05,2]
[421292491,1777371032808,-1680.0,9.944e-05,2]
[421292492,1777371032817,-331.37336349,0.0001,2]
[421292493,1777371032826,-301.51993717,0.0001,2]
[421292494,1777371032836,-1743.05,0.00010021,2]
[421292495,1777371032845,-8622.0,0.00010021,2]
[421292496,1777371032854,-150.0,0.00010332,2]
[421292497,1777371032863,-150.0,0.00010332,2]
[421292498,1777371032872,-176.894,0.00010332,2]
[421292499,1777371032881,-150.0,0.00010332,2]
[421292500,1777371032896,-150.0,0.00010332,2]
[421292501,1777371032910,-65399.743,0.000106,2]
[421292502,1777371032919,-150.0,0.00010618,2]
[421292503,1777371032928,-200.0,0.00010694,2]
[421292504,1777371032937,-150.0,0.00010698,2]
[421292505,1777371032947,-53297.12496426,0.000107,2]
[421292506,1777371032957,-411.0,0.00010849,2]
[421292507,1777371032966,-150.0,0.00010905,2]
[421292508,1777371032975,-150.0,0.00010905,2]
[421292509,1777371032984,-2351.0,0.00010939,2]
[421292510,1777371032994,-502.43166806,0.00010959,2]
[421292511,1777371033003,-6035.0,0.00011074,2]
[421292512,1777371033013,-927.0,0.00011074,2]
[421292513,1777371033022,-227.54,0.00011092,2]
[421292514,1777371033032,-3587.46,0.00011134,2]
[421292515,1777371033041,-500.0,0.00011135,2]
[421292516,1777371033051,-150.0,0.00011192,2]
[421292517,1777371033060,-151.0,0.00011235,2]
[421292518,1777371033069,-150.0,0.00011235,2]
[421292519,1777371033079,-150.0,0.00011235,2]
[421292520,1777371033088,-800.14,0.00011235,2]
[421292521,1777371033098,-200.0,0.00011242,2]
[421292522,1777371033107,-578.20924308,0.00011399,2]
[421292523,1777371033116,-151.0,0.00011399,2]
[421292524,1777371033126,-151.83338359,0.000114,2]
[421292525,1777371033135,-158.09737616,0.000114,2]
[421292526,1777371033144,-4650.9821,0.000114,2]
[421292527,1777371033154,-5000.0,0.000114,2]
[421292528,1777371033163,-2500.0,0.000114,2]
[421292530,1777371033172,-500.0,0.00011452,2]
[421292531,1777371033181,-150.0,0.00011452,2]
[421292532,1777371033191,-500.0,0.00011452,2]
[421292533,1777371033200,-150.0,0.00011452,2]
[421292534,1777371033209,-500.0,0.00011452,2]
[421292535,1777371033219,-150.0,0.00011452,2]
[421292536,1777371033228,-500.0,0.00011452,2]
[421292537,1777371033237,-210.68312372,0.00011452,2]
[421292538,1777371033247,-537.88183946,0.00011452,2]
[421292539,1777371033256,-500.0,0.00011452,2]
[421292540,1777371033266,-500.0,0.00011452,2]
[421292541,1777371033276,-500.0,0.00011452,2]
[421292542,1777371033286,-500.0,0.00011452,2]
[421292543,1777371033295,-356.83659752,0.00011452,2]
[421292544,1777371033304,-500.0,0.00011473,2]
[421292545,1777371033314,-500.0,0.00011473,2]
[421292546,1777371033323,-500.0,0.00011473,2]
[421292547,1777371033332,-500.0,0.00011473,2]
[421292548,1777371033341,-500.0,0.00011473,2]
[421292549,1777371033351,-4399.65753127,0.00011473,2]
[421292550,1777371033360,-9633.78816047,0.00011473,2]
[421292551,1777371033370,-150.0,0.00011479,2]
[421292552,1777371033380,-150.0,0.00011479,2]
[421292553,1777371033390,-250.0,0.00011499,2]
[421292554,1777371033399,-348.35740167,0.00011499,2]
[421292555,1777371033409,-500.0,0.00011499,2]
[421292556,1777371033419,-275.00183575,0.00011499,2]
[421292557,1777371033428,-500.0,0.00011499,2]
[421292558,1777371033438,-331.97385862,0.00011499,2]
[421292559,1777371033447,-500.0,0.00011499,2]
[421292560,1777371033456,-500.0,0.00011499,2]
[421292561,1777371033465,-500.0,0.00011499,2]
[421292562,1777371033474,-316.34087128,0.00011499,2]
[421292563,1777371033484,-500.0,0.00011499,2]
[421292564,1777371033493,-500.0,0.00011499,2]
[421292565,1777371033503,-500.0,0.00011499,2]
[421292566,1777371033516,-500.0,0.00011499,2]
[421292567,1777371033526,-500.0,0.00011499,2]
[421292568,1777371033536,-500.0,0.00011499,2]
[421292569,1777371033545,-154.56156925,0.00011499,2]
[421292570,1777371033555,-170.10106507,0.00011499,2]
[421292571,1777371033564,-161.62952544,0.00011499,2]
[421292572,1777371033574,-553.28,0.00011499,2]
[421292573,1777371033583,-101786.5499496,0.000115,2]
[421292574,1777371033609,-400.0,0.000115,2]
[421292575,1777371033636,-407.0,0.000115,2]
[421292576,1777371033647,-816.11829527,0.000115,2]
[421292577,1777371033659,-4293.43565038,0.000115,2]
[421292578,1777371033670,-2808.26898585,0.000115,2]
[421292579,1777371033682,-2414.2214,0.000115,2]
[421292580,1777371033693,-9214.38258139,0.000115,2]
[421292585,1777371040474,-30236.30166726,0.000115,2]
[421292586,1777371040486,-2659.0,0.000115,2]
[421292589,1777371040528,-20538.755009,0.000115,2]
[421292592,1777371040963,-152489.73733269,0.000115,2]
[421292599,1777371041020,-1019.64210675,0.000115,2]
[421292601,1777371041031,-958.79153409,0.000115,2]
[421292619,1777371041191,-2875.51583003,0.000115,2]
[421292673,1777371048405,-160.47130296,0.00011499,2]
[421292674,1777371048414,-220.04169696,0.000115,2]
[421292681,1777371048622,-765.17,0.000115,2]
[421292682,1777371048680,-502.0,0.000115,2]
[421292683,1777371048737,-7762.79204175,0.000115,2]
[421292684,1777371048767,-13463.17327255,0.000115,2]
[421292685,1777371048781,-16146.02320685,0.000115,2]
[421292686,1777371048793,-726.65367492,0.000115,2]
[421292687,1777371048899,-4088.5,0.000115,2]
[421292809,1777371992144,-214.0,8.119e-05,2]
[421292810,1777371992165,-37.73075014,8.119e-05,2]
[421292811,1777372173066,-128.03460834,8.119e-05,2]